[Event "35th European Club Cup 2019"]
[Site "Ulcinj"]
[Date "2019.11.12"]
[Round "3.24"]
[White "Van Vliet, Dennis"]
[Black "Duijn, Rob"]
[Result "0-1"]
[ECO "D10"]
[WhiteElo "2051"]
[BlackElo "2220"]
[Annotator "NA"]
[PlyCount "104"]
[EventDate "2019.11.10"]
[EventType "team-tourn"]
[EventCountry "MNE"]
[SourceTitle "playchess.com"]
[Source "ChessBase"]
[SourceQuality "1"]
[WhiteTeam "Wachtebeke"]
[BlackTeam "Kennemer Combinatie"]
[TimeControl "40/5400+30:1800+30"]

1. d4 d5 2. c4 c6 3. cxd5 cxd5 4. Nc3 Nf6 5. Bf4 Nc6 6. e3 e6 7. Bd3 a6 8. Rc1 Bd6 9. Bxd6 Qxd6 10. f4 O-O 11. Nf3 b5 12. Ne5 Bb7 13. O-O Ne7 14. Qf3 g6 15. g4 Nd7 16. g5 Rac8 17. a3 Nb6 18. Ng4 Nf5 19. Nf6+ Kg7 20. Ne2 h5 21. Bxf5 exf5 22. Ng3 h4 23. Nfh5+ Kh8 24. Nxf5 gxf5 25. Nf6 Kg7 26. Nh5+ Kg6 27. Nf6 Rh8 28. Rxc8 Bxc8 29. Rc1 Be6 30. Rc5 Nd7 31. Nxd7 Qxd7 32. b4 f6 33. Qg2 Rg8 {[%emt 1:31:51]} 34. Qf2 {[%emt 1:37:29]} fxg5 {[%emt 0:00:30]} 35. fxg5 {[%emt 0:00:04]} Kxg5 {[%emt 0:00:51]} 36. Kh1 {[%emt 0:01:09]} Qd6 {[%emt 0:05:23]} 37. Rc1 {[%emt 0:00:11]} Kh5 {[%emt 0:01:01]} 38. Qf3+ {[%emt 0:00:19]} Kh6 {[%emt 0:00:16]} 39. Qf2 {[%emt 0:00:00]} Rg4 {[%emt 0:00:00]} 40. Qf3 {[%emt 0:00:00]} Bd7 {[%emt 0:00:00]} 41. Rc5 {[%emt 0:05:54]} Qe6 {[%emt 0:05:23]} 42. Rc7 {[%emt 0:00:30]} f4 {[%emt 0:01:38]} 43. h3 {[%emt 0:00:29]} Rg5 {[%emt 0:01:56]} 44. Rc3 {[%emt 0:02:02]} Qf5 {[%emt 0:02:01]} 45. Kh2 {[%emt 0:03:50]} fxe3 {[%emt 0:02:10]} 46. Qxf5 {[%emt 0:01:17]} Bxf5 {[%emt 0:00:14]} 47. Rxe3 {[%emt 0:00:03]} Be4 48. Re2 {[%emt 0:00:39]} Rg3 {[%emt 0:00:29]} 49. a4 {[%emt 0:00:52]} bxa4 {[%emt 0:00:08]} 50. Rf2 {[%emt 0:00:16]} Kg5 {[%emt 0:00:09]} 51. b5 axb5 {[%emt 0:00:05]} 52. Rf5+ {[%emt 0:00:56]} Bxf5 {[%emt 0:00:09]} 0-1

[Event "35th European Club Cup 2019"]
[Site "Ulcinj"]
[Date "2019.11.12"]
[Round "3.32"]
[White "Alekseev, Evgeny"]
[Black "Asadli, Vugar"]
[Result "1/2-1/2"]
[ECO "C55"]
[WhiteElo "2623"]
[BlackElo "2513"]
[Annotator "ChessBase"]
[PlyCount "75"]
[EventDate "2019.11.10"]
[EventType "team-tourn"]
[EventCountry "MNE"]
[SourceTitle "playchess.com"]
[Source "ChessBase"]
[SourceQuality "1"]
[WhiteTeam "Law & Order"]
[BlackTeam "Vugar Gashimov"]
[TimeControl "40/5400+30:1800+30"]

1. e4 {[%emt 0:00:00]} e5 {[%emt 0:00:00]} 2. Nf3 {[%emt 0:00:00]} Nc6 {[%emt 0:00:00]} 3. Bc4 {[%emt 0:00:18]} Nf6 {[%emt 0:01:02]} 4. d3 {[%emt 0:01:17]} h6 {[%emt 0:02:26]} 5. O-O {[%emt 0:05:53]} d6 {[%emt 0:00:30]} 6. a3 {[%emt 0:09:26]} g5 {[%emt 0:09:27]} 7. Be3 {[%emt 0:10:29]} Bg7 {[%emt 0:02:06]} 8. Nc3 {[%emt 0:03:01]} O-O {[%emt 0:06:07]} 9. h3 {[%emt 0:17:30]} Be6 {[%emt 0:07:07]} 10. Bxe6 {[%emt 0:05:15]} fxe6 {[%emt 0:00:05]} 11. Ne2 {[%emt 0:00:17]} Nh5 {[%emt 0:12:46]} 12. Nh2 {[%emt 0:04:51]} Qe8 {[%emt 0:01:26]} 13. c3 {[%emt 0:01:59]} Nf4 {[%emt 0:08:26]} 14. Qc2 {[%emt 0:03:27]} Qg6 {[%emt 0:02:24]} 15. Rad1 {[%emt 0:04:50]} Rad8 {[%emt 0:03:45]} 16. b4 {[%emt 0:02:08]} a6 {[%emt 0:01:20]} 17. a4 {[%emt 0:00:40]} b5 {[%emt 0:03:13]} 18. Ra1 {[%emt 0:01:13]} Ra8 {[%emt 0:01:55]} 19. Ra3 {[%emt 0:04:00]} d5 {[%emt 0:02:49]} 20. Bc5 {[%emt 0:05:57]} Rfd8 {[%emt 0:01:07]} 21. Rfa1 {[%emt 0:00:13]} bxa4 {[%emt 0:00:50]} 22. Rxa4 {[%emt 0:02:19]} Nb8 {[%emt 0:04:17]} 23. b5 {[%emt 0:07:36]} Nd7 {[%emt 0:02:35]} 24. Be3 {[%emt 0:00:17]} a5 {[%emt 0:02:02]} 25. Rxa5 {[%emt 0:01:06]} Rxa5 {[%emt 0:00:07]} 26. Rxa5 {[%emt 0:00:03]} Nb6 {[%emt 0:08:08]} 27. Ra7 {[%emt 0:02:35]} dxe4 {[%emt 0:00:54]} 28. dxe4 {[%emt 0:00:04]} Nxe2+ {[%emt 0:02:20]} 29. Qxe2 {[%emt 0:00:02]} Qxe4 {[%emt 0:00:11]} 30. Nf1 {[%emt 0:02:56]} Nd5 {[%emt 0:00:51]} 31. Ng3 {[%emt 0:02:19]} Nxc3 {[%emt 0:03:34]} 32. Nxe4 {[%emt 0:02:10]} Nxe2+ {[%emt 0:00:06]} 33. Kh2 {[%emt 0:01:00]} Nd4 {[%emt 0:01:10]} 34. Rxc7 {[%emt 0:01:12]} Nxb5 {[%emt 0:00:03]} 35. Rb7 {[%emt 0:00:31]} Nd6 {[%emt 0:00:32]} 36. Nxd6 {[%emt 0:00:24]} Rxd6 {[%emt 0:00:03]} 37. Kg3 {[%emt 0:00:24]} Kh7 {[%emt 0:00:27]} 38. h4 {[%emt 0:00:40]} 1/2-1/2

[Event "35th European Club Cup 2019"]
[Site "Ulcinj"]
[Date "2019.11.12"]
[Round "3.36"]
[White "Sychev, Klementy"]
[Black "Ahmadzada, Ahmad"]
[Result "0-1"]
[ECO "A65"]
[WhiteElo "2578"]
[BlackElo "2406"]
[Annotator "ChessBase"]
[PlyCount "106"]
[EventDate "2019.11.10"]
[EventType "team-tourn"]
[EventCountry "MNE"]
[SourceTitle "playchess.com"]
[Source "ChessBase"]
[SourceQuality "1"]
[WhiteTeam "Law & Order"]
[BlackTeam "Vugar Gashimov"]
[TimeControl "40/5400+30:1800+30"]

1. d4 {[%emt 0:00:12]} Nf6 {[%emt 0:00:00]} 2. c4 {[%emt 0:02:51]} c5 {[%emt 0:00:00]} 3. d5 {[%emt 0:00:04]} e6 {[%emt 0:00:00]} 4. Nc3 {[%emt 0:00:03]} exd5 {[%emt 0:00:00]} 5. cxd5 {[%emt 0:00:03]} d6 {[%emt 0:00:04]} 6. e4 {[%emt 0:00:12]} g6 {[%emt 0:00:09]} 7. f4 {[%emt 0:00:06]} Bg7 {[%emt 0:00:04]} 8. Bb5+ {[%emt 0:00:11]} Nfd7 {[%emt 0:00:18]} 9. Nf3 {[%emt 0:00:22]} O-O {[%emt 0:00:11]} 10. O-O {[%emt 0:01:30]} a6 {[%emt 0:00:04]} 11. Bd3 {[%emt 0:00:04]} b5 {[%emt 0:00:06]} 12. Kh1 {[%emt 0:01:56]} c4 {[%emt 0:04:46]} 13. Bc2 {[%emt 0:02:15]} Nc5 {[%emt 0:02:10]} 14. f5 {[%emt 0:04:43]} Nbd7 {[%emt 0:03:33]} 15. Bg5 {[%emt 0:02:46]} Bf6 {[%emt 0:02:50]} 16. Qd2 {[%emt 0:00:43]} Ne5 {[%emt 0:08:58]} 17. h4 {[%emt 0:28:58]} Nxf3 {[%emt 0:21:08]} 18. Rxf3 {[%emt 0:00:09]} gxf5 {[%emt 0:00:11]} 19. exf5 {[%emt 0:16:25]} Kh8 20. Ne2 {[%emt 0:06:16]} Rg8 {[%emt 0:21:31]} 21. Rg3 {[%emt 0:00:09]} Nd7 {[%emt 0:22:37]} 22. Re1 {[%emt 0:08:54]} Qf8 {[%emt 0:08:01]} 23. Nf4 {[%emt 0:14:00]} Be5 {[%emt 0:00:42]} 24. Rxe5 {[%emt 0:06:48]} dxe5 {[%emt 0:00:19]} 25. Ne6 {[%emt 0:00:04]} Qd6 {[%emt 0:02:51]} 26. Nd8 {[%emt 0:00:18]} Qf8 {[%emt 0:00:54]} 27. Ne6 {[%emt 0:00:33]} Qd6 {[%emt 0:00:19]} 28. Nd8 {[%emt 0:01:16]} Qf8 {[%emt 0:00:15]} 29. Qb4 {[%emt 0:01:25]} f6 {[%emt 0:01:51]} 30. Qxf8 {[%emt 0:00:17]} Rxf8 {[%emt 0:00:22]} 31. Bh6 {[%emt 0:00:03]} Rxd8 {[%emt 0:00:08]} 32. Bg7+ {[%emt 0:00:05]} Kg8 {[%emt 0:00:07]} 33. Bxf6+ {[%emt 0:00:03]} Kf7 {[%emt 0:00:14]} 34. Bxd8 {[%emt 0:00:04]} Bb7 {[%emt 0:00:06]} 35. Ba5 {[%emt 0:01:34]} Bxd5 {[%emt 0:00:28]} 36. Bc3 {[%emt 0:00:41]} Nf6 {[%emt 0:01:00]} 37. Bxe5 {[%emt 0:01:13]} Re8 {[%emt 0:00:03]} 38. Bc3 {[%emt 0:00:03]} b4 {[%emt 0:00:48]} 39. Bxb4 {[%emt 0:01:35]} Re2 {[%emt 0:00:06]} 40. Ba4 {[%emt 0:00:00]} Ne4 {[%emt 0:00:00]} 41. Ra3 {[%emt 0:05:12]} Rxb2 {[%emt 0:07:44]} 42. Ba5 {[%emt 0:00:19]} Nc5 {[%emt 0:02:58]} 43. Kg1 {[%emt 0:01:28]} Rxg2+ {[%emt 0:02:51]} 44. Kf1 {[%emt 0:00:10]} Rh2 {[%emt 0:02:57]} 45. Bc7 {[%emt 0:13:45]} Rxh4 {[%emt 0:00:46]} 46. Bc2 {[%emt 0:00:09]} Be4 {[%emt 0:03:43]} 47. Ra5 {[%emt 0:09:24]} Bd3+ {[%emt 0:03:14]} 48. Kg2 {[%emt 0:04:08]} Nb7 {[%emt 0:01:13]} 49. Kg3 {[%emt 0:00:19]} Rd4 {[%emt 0:07:34]} 50. Rxa6 {[%emt 0:00:19]} Bxc2 {[%emt 0:00:04]} 51. Ra7 {[%emt 0:00:52]} Be4 {[%emt 0:00:55]} 52. Be5 {[%emt 0:00:03]} Rd7 {[%emt 0:00:36]} 53. Kf4 {[%emt 0:00:20]} Bxf5 {[%emt 0:00:27]} 0-1

[Event "35th European Club Cup 2019"]
[Site "Ulcinj"]
[Date "2019.11.13"]
[Round "4.2"]
[White "Cardon, Helmut"]
[Black "Banusz, Tamas"]
[Result "0-1"]
[ECO "D12"]
[WhiteElo "2398"]
[BlackElo "2620"]
[Annotator "ChessBase"]
[PlyCount "132"]
[EventDate "2019.11.10"]
[EventType "team-tourn"]
[EventCountry "MNE"]
[SourceTitle "playchess.com"]
[Source "ChessBase"]
[SourceQuality "1"]
[WhiteTeam "HWP Sas van Gent"]
[BlackTeam "Koge SK"]
[TimeControl "40/5400+30:1800+30"]

1. d4 {[%emt 0:00:00]} d5 {[%emt 0:00:00]} 2. c4 {[%emt 0:00:00]} c6 {[%emt 0:00:00]} 3. Nf3 {[%emt 0:00:00]} Nf6 {[%emt 0:00:00]} 4. e3 {[%emt 0:00:00]} Bf5 {[%emt 0:00:00]} 5. Nc3 {[%emt 0:00:44]} e6 {[%emt 0:00:10]} 6. Nh4 {[%emt 0:00:16]} Bg6 {[%emt 0:00:11]} 7. Be2 {[%emt 0:00:18]} Nbd7 {[%emt 0:01:14]} 8. O-O {[%emt 0:00:12]} dxc4 {[%emt 0:03:36]} 9. Bxc4 {[%emt 0:02:35]} Bd6 {[%emt 0:04:48]} 10. g3 {[%emt 0:05:23]} Nb6 {[%emt 0:05:51]} 11. Be2 {[%emt 0:03:02]} Qe7 {[%emt 0:03:27]} 12. Qb3 {[%emt 0:41:54]} e5 {[%emt 0:05:18]} 13. dxe5 {[%emt 0:02:28]} Bxe5 {[%emt 0:00:09]} 14. Rd1 {[%emt 0:01:20]} Nfd7 {[%emt 0:06:15]} 15. a4 {[%emt 0:10:26]} Nc5 {[%emt 0:03:59]} 16. Qa3 {[%emt 0:04:59]} a5 {[%emt 0:05:18]} 17. f4 {[%emt 0:04:48]} Bf6 {[%emt 0:07:08]} 18. Nxg6 {[%emt 0:00:48]} hxg6 {[%emt 0:00:05]} 19. e4 {[%emt 0:01:03]} Ne6 {[%emt 0:11:07]} 20. Qxe7+ {[%emt 0:09:56]} Bxe7 {[%emt 0:01:31]} 21. b3 {[%emt 0:00:31]} Bc5+ {[%emt 0:03:16]} 22. Kg2 {[%emt 0:00:01]} Nd4 {[%emt 0:02:16]} 23. Rb1 {[%emt 0:03:43]} O-O-O {[%emt 0:01:38]} 24. Bf1 {[%emt 0:04:32]} Nc2 {[%emt 0:03:55]} 25. Rxd8+ {[%emt 0:02:40]} Rxd8 {[%emt 0:00:04]} 26. Be2 {[%emt 0:00:38]} Nd4 {[%emt 0:04:07]} 27. Bd1 {[%emt 0:00:23]} Bb4 {[%emt 0:02:18]} 28. Ne2 {[%emt 0:00:32]} Nf3 {[%emt 0:03:16]} 29. Be3 {[%emt 0:00:18]} Ne1+ {[%emt 0:00:07]} 30. Kf1 {[%emt 0:00:13]} Kc7 {[%emt 0:00:24]} 31. Bf2 {[%emt 0:00:21]} Nf3 {[%emt 0:00:18]} 32. Rc1 {[%emt 0:00:57]} Nd2+ {[%emt 0:02:38]} 33. Kg2 {[%emt 0:00:02]} Nxe4 {[%emt 0:00:15]} 34. Bd4 {[%emt 0:00:40]} f6 {[%emt 0:02:15]} 35. Bc2 {[%emt 0:00:02]} Nd2 {[%emt 0:02:03]} 36. Rd1 {[%emt 0:01:02]} Nd5 {[%emt 0:01:11]} 37. Kf2 {[%emt 0:00:16]} c5 {[%emt 0:03:35]} 38. Bb2 {[%emt 0:01:08]} Ne7 {[%emt 0:02:15]} 39. Bc1 {[%emt 0:00:48]} Nc6 {[%emt 0:01:44]} 40. Bxd2 {[%emt 0:00:00]} Bxd2 {[%emt 0:00:00]} 41. Kf1 {[%emt 0:10:49]} g5 {[%emt 0:02:44]} 42. fxg5 {[%emt 0:00:08]} fxg5 {[%emt 0:00:26]} 43. Kg2 {[%emt 0:06:31]} Ne5 {[%emt 0:04:20]} 44. Rf1 {[%emt 0:04:40]} Be3 {[%emt 0:01:05]} 45. Rd1 {[%emt 0:00:08]} Bd2 {[%emt 0:04:00]} 46. Rf1 {[%emt 0:00:04]} Kd6 {[%emt 0:00:41]} 47. Rd1 {[%emt 0:06:17]} Ke7 {[%emt 0:00:24]} 48. Be4 {[%emt 0:00:51]} Ng4 {[%emt 0:01:49]} 49. Rb1 {[%emt 0:01:17]} Ne3+ {[%emt 0:00:07]} 50. Kg1 {[%emt 0:00:30]} b6 {[%emt 0:00:31]} 51. h3 {[%emt 0:00:19]} Ke6 {[%emt 0:02:42]} 52. Rb2 {[%emt 0:02:17]} Ke5 {[%emt 0:01:23]} 53. Bb7 {[%emt 0:00:31]} g4 {[%emt 0:01:50]} 54. hxg4 {[%emt 0:00:16]} Nxg4 {[%emt 0:00:06]} 55. Kg2 {[%emt 0:00:57]} g5 {[%emt 0:02:58]} 56. Ng1 {[%emt 0:01:39]} Ne3+ {[%emt 0:01:17]} 57. Kf3 {[%emt 0:00:11]} g4+ {[%emt 0:00:25]} 58. Ke2 {[%emt 0:00:01]} Bc3 {[%emt 0:00:09]} 59. Rb1 {[%emt 0:01:25]} Nf5 {[%emt 0:00:09]} 60. Kf2 {[%emt 0:00:20]} Bd4+ {[%emt 0:00:49]} 61. Kg2 {[%emt 0:00:45]} Bxg1 {[%emt 0:05:47]} 62. Kxg1 {[%emt 0:00:40]} Rd3 {[%emt 0:00:23]} 63. Ba6 {[%emt 0:00:33]} Rxg3+ {[%emt 0:00:07]} 64. Kf2 {[%emt 0:00:03]} Rf3+ {[%emt 0:00:09]} 65. Kg2 {[%emt 0:00:38]} Ne3+ {[%emt 0:00:28]} 66. Kg1 {[%emt 0:00:02]} g3 {[%emt 0:00:15]} 0-1

[Event "35th European Club Cup 2019"]
[Site "Ulcinj"]
[Date "2019.11.13"]
[Round "4.3"]
[White "Esipenko, Andrey"]
[Black "Sadikhov, Ulvi"]
[Result "1-0"]
[ECO "E90"]
[WhiteElo "2636"]
[BlackElo "2502"]
[Annotator "ChessBase"]
[PlyCount "81"]
[EventDate "2019.11.10"]
[EventType "team-tourn"]
[EventCountry "MNE"]
[SourceTitle "playchess.com"]
[Source "ChessBase"]
[SourceQuality "1"]
[WhiteTeam "Molodezka"]
[BlackTeam "Vugar Gashimov"]
[TimeControl "40/5400+30:1800+30"]

1. d4 {[%emt 0:00:00]} Nf6 {[%emt 0:00:00]} 2. c4 {[%emt 0:00:00]} g6 {[%emt 0:00:05]} 3. Nc3 {[%emt 0:00:15]} Bg7 {[%emt 0:00:07]} 4. e4 {[%emt 0:00:13]} d6 {[%emt 0:00:39]} 5. Nf3 {[%emt 0:00:18]} Bg4 {[%emt 0:00:44]} 6. Be2 {[%emt 0:02:51]} Nfd7 {[%emt 0:00:17]} 7. Be3 {[%emt 0:04:00]} O-O {[%emt 0:00:51]} 8. O-O {[%emt 0:01:19]} Nc6 {[%emt 0:00:21]} 9. d5 {[%emt 0:02:50]} Bxf3 {[%emt 0:00:20]} 10. gxf3 {[%emt 0:16:52]} Ncb8 {[%emt 0:15:17]} 11. Rc1 {[%emt 0:01:37]} e5 {[%emt 0:07:34]} 12. b4 {[%emt 0:03:22]} a5 {[%emt 0:11:40]} 13. a3 {[%emt 0:00:04]} axb4 {[%emt 0:00:48]} 14. axb4 {[%emt 0:00:05]} Na6 {[%emt 0:00:55]} 15. Rb1 {[%emt 0:07:51]} Qh4 {[%emt 0:06:26]} 16. c5 {[%emt 0:02:26]} dxc5 {[%emt 0:09:25]} 17. Bxa6 {[%emt 0:01:09]} bxa6 {[%emt 0:02:17]} 18. bxc5 {[%emt 0:01:26]} Bh6 {[%emt 0:02:02]} 19. Bxh6 {[%emt 0:05:22]} Qxh6 {[%emt 0:00:14]} 20. c6 {[%emt 0:01:12]} Nf6 {[%emt 0:01:32]} 21. Rb7 {[%emt 0:04:58]} Rfc8 {[%emt 0:06:45]} 22. Qc1 {[%emt 0:02:42]} Qh3 {[%emt 0:06:13]} 23. Qe3 {[%emt 0:02:42]} Nh5 {[%emt 0:02:01]} 24. Ne2 {[%emt 0:00:19]} a5 {[%emt 0:03:55]} 25. Ra1 {[%emt 0:01:55]} a4 {[%emt 0:01:24]} 26. Ra3 {[%emt 0:02:13]} Qh4 {[%emt 0:00:39]} 27. Qc3 {[%emt 0:03:48]} Qe7 {[%emt 0:00:55]} 28. Kf1 {[%emt 0:02:39]} Rcb8 {[%emt 0:05:00]} 29. Qb2 {[%emt 0:04:24]} Rc8 {[%emt 0:03:21]} 30. Qa1 {[%emt 0:03:08]} Qf6 {[%emt 0:00:50]} 31. Qc3 {[%emt 0:01:06]} Nf4 {[%emt 0:02:28]} 32. Nxf4 {[%emt 0:02:56]} Qxf4 {[%emt 0:00:01]} 33. h3 {[%emt 0:00:10]} f5 {[%emt 0:05:19]} 34. Qc4 {[%emt 0:04:33]} fxe4 {[%emt 0:00:57]} 35. d6+ {[%emt 0:02:57]} Qf7 {[%emt 0:01:25]} 36. Qxe4 {[%emt 0:01:42]} Qe6 {[%emt 0:00:11]} 37. d7 {[%emt 0:03:26]} Rf8 {[%emt 0:00:25]} 38. Kg2 {[%emt 0:01:00]} Rf4 {[%emt 0:01:38]} 39. Rxa4 {[%emt 0:00:23]} Raf8 {[%emt 0:00:30]} 40. Qd3 {[%emt 0:00:00]} Qxc6 {[%emt 0:00:00]} 41. Rxf4 {[%emt 0:00:52]} 1-0

[Event "35th European Club Cup 2019"]
[Site "Ulcinj"]
[Date "2019.11.13"]
[Round "4.3"]
[White "Lammens, Tim"]
[Black "Brunner, Lucas"]
[Result "0-1"]
[ECO "B39"]
[WhiteElo "2258"]
[BlackElo "2441"]
[Annotator "NA"]
[PlyCount "28"]
[EventDate "2019.11.10"]
[EventType "team-tourn"]
[EventCountry "MNE"]
[SourceTitle "playchess.com"]
[Source "ChessBase"]
[SourceQuality "1"]
[WhiteTeam "Apeldoorn"]
[BlackTeam "Zurich SG"]
[TimeControl "40/5400+30:1800+30"]

1. Nf3 c5 2. c4 g6 3. d4 cxd4 4. Nxd4 Nc6 5. e4 Bg7 6. Be3 Nf6 7. Nc3 Ng4 8. Qxg4 Nxd4 9. Qd1 Ne6 10. Qd2 Qa5 11. Rb1 Bxc3 12. bxc3 d6 {[%emt 0:37:35]} 13. Be2 {[%emt 0:27:54]} Qc7 {[%emt 0:03:07]} 14. O-O b6 {[%emt 0:00:00]} 0-1

[Event "35th European Club Cup 2019"]
[Site "Ulcinj"]
[Date "2019.11.13"]
[Round "4.4"]
[White "Maenhout, Thibaut"]
[Black "Sengupta, Deep"]
[Result "1/2-1/2"]
[ECO "B10"]
[WhiteElo "2372"]
[BlackElo "2557"]
[Annotator "ChessBase"]
[PlyCount "93"]
[EventDate "2019.11.10"]
[EventType "team-tourn"]
[EventCountry "MNE"]
[SourceTitle "playchess.com"]
[Source "ChessBase"]
[SourceQuality "1"]
[WhiteTeam "HWP Sas van Gent"]
[BlackTeam "Koge SK"]
[TimeControl "40/5400+30:1800+30"]

1. e4 {[%emt 0:00:00]} c6 {[%emt 0:00:00]} 2. c4 {[%emt 0:01:39]} e5 {[%emt 0:01:50]} 3. Nc3 {[%emt 0:01:47]} Nf6 {[%emt 0:00:57]} 4. Nf3 {[%emt 0:01:29]} d6 {[%emt 0:00:05]} 5. d4 {[%emt 0:00:15]} Bg4 {[%emt 0:00:33]} 6. Be2 {[%emt 0:02:36]} Nbd7 {[%emt 0:01:08]} 7. O-O {[%emt 0:01:26]} Be7 {[%emt 0:00:15]} 8. h3 {[%emt 0:06:54]} Bxf3 {[%emt 0:00:44]} 9. Bxf3 {[%emt 0:00:04]} O-O {[%emt 0:00:09]} 10. Be3 {[%emt 0:01:19]} a6 {[%emt 0:13:22]} 11. a4 {[%emt 0:07:20]} exd4 {[%emt 0:03:30]} 12. Bxd4 {[%emt 0:03:04]} a5 {[%emt 0:00:04]} 13. g3 {[%emt 0:05:58]} Ne8 {[%emt 0:04:29]} 14. Qb3 {[%emt 0:03:00]} Bf6 {[%emt 0:04:12]} 15. Be3 {[%emt 0:01:32]} Qc7 {[%emt 0:01:29]} 16. Bg2 {[%emt 0:01:45]} Nc5 {[%emt 0:07:06]} 17. Qc2 {[%emt 0:00:18]} Qb6 {[%emt 0:01:51]} 18. f4 {[%emt 0:08:10]} Qb4 {[%emt 0:08:50]} 19. Qe2 {[%emt 0:07:36]} Nc7 {[%emt 0:03:58]} 20. Rad1 {[%emt 0:00:31]} Rad8 {[%emt 0:02:33]} 21. Kh1 {[%emt 0:05:14]} N7e6 {[%emt 0:13:02]} 22. g4 {[%emt 0:18:06]} Rfe8 {[%emt 0:01:25]} 23. g5 {[%emt 0:01:24]} Bxc3 {[%emt 0:02:11]} 24. bxc3 {[%emt 0:00:07]} Qxc3 {[%emt 0:00:04]} 25. f5 {[%emt 0:08:13]} Nf8 {[%emt 0:01:40]} 26. Rf4 {[%emt 0:02:20]} Qb3 {[%emt 0:06:25]} 27. Bd4 {[%emt 0:02:33]} Qxa4 {[%emt 0:03:32]} 28. Rh4 {[%emt 0:02:09]} Rd7 {[%emt 0:05:54]} 29. Rf1 {[%emt 0:02:08]} Re5 {[%emt 0:03:43]} 30. Qb2 {[%emt 0:03:51]} b5 {[%emt 0:05:30]} 31. Ra1 {[%emt 0:01:28]} Qxc4 {[%emt 0:01:02]} 32. Rxa5 {[%emt 0:00:43]} Nd3 {[%emt 0:03:41]} 33. Qa1 {[%emt 0:00:06]} Qc1+ {[%emt 0:00:34]} 34. Qxc1 {[%emt 0:00:36]} Nxc1 {[%emt 0:00:01]} 35. Ra8 {[%emt 0:00:09]} c5 {[%emt 0:01:02]} 36. g6 {[%emt 0:00:52]} hxg6 {[%emt 0:00:30]} 37. fxg6 {[%emt 0:00:08]} fxg6 {[%emt 0:00:14]} 38. Rf4 {[%emt 0:00:48]} Rf7 {[%emt 0:00:04]} 39. Bxe5 {[%emt 0:00:13]} dxe5 {[%emt 0:00:04]} 40. Rxf7 {[%emt 0:00:00]} Kxf7 {[%emt 0:00:00]} 41. Bf1 {[%emt 0:01:10]} c4 {[%emt 0:02:34]} 42. Rb8 {[%emt 0:01:12]} Nb3 {[%emt 0:00:12]} 43. Rxb5 {[%emt 0:01:26]} Nd2 {[%emt 0:00:22]} 44. Be2 {[%emt 0:11:43]} Ne6 {[%emt 0:01:49]} 45. Rxe5 {[%emt 0:04:19]} Nf4 {[%emt 0:01:39]} 46. Bg4 {[%emt 0:02:57]} Nd3 {[%emt 0:08:12]} 47. Rd5 {[%emt 0:02:01]} 1/2-1/2

[Event "35th European Club Cup 2019"]
[Site "Ulcinj"]
[Date "2019.11.13"]
[Round "4.5"]
[White "Antipov, Mikhail Al."]
[Black "Suleymanli, Aydin"]
[Result "0-1"]
[ECO "B10"]
[WhiteElo "2558"]
[BlackElo "2429"]
[Annotator "ChessBase"]
[PlyCount "98"]
[EventDate "2019.11.10"]
[EventType "team-tourn"]
[EventCountry "MNE"]
[SourceTitle "playchess.com"]
[Source "ChessBase"]
[SourceQuality "1"]
[WhiteTeam "Molodezka"]
[BlackTeam "Vugar Gashimov"]
[TimeControl "40/5400+30:1800+30"]

1. e4 {[%emt 0:00:00]} c6 {[%emt 0:00:00]} 2. Nf3 {[%emt 0:00:00]} d5 {[%emt 0:00:00]} 3. d3 {[%emt 0:00:00]} Bg4 {[%emt 0:00:05]} 4. h3 {[%emt 0:00:00]} Bh5 {[%emt 0:00:11]} 5. Nbd2 {[%emt 0:01:00]} e6 {[%emt 0:00:17]} 6. Qe2 {[%emt 0:06:11]} Nd7 {[%emt 0:02:07]} 7. g3 {[%emt 0:02:40]} Bd6 {[%emt 0:02:44]} 8. Bg2 {[%emt 0:00:23]} Ne7 {[%emt 0:00:08]} 9. O-O {[%emt 0:02:45]} O-O {[%emt 0:00:09]} 10. Re1 {[%emt 0:00:54]} Kh8 {[%emt 0:00:58]} 11. Qf1 {[%emt 0:05:20]} c5 {[%emt 0:02:36]} 12. c3 {[%emt 0:04:57]} Rc8 {[%emt 0:04:37]} 13. a4 {[%emt 0:08:35]} h6 {[%emt 0:02:31]} 14. exd5 {[%emt 0:04:18]} exd5 {[%emt 0:01:29]} 15. d4 {[%emt 0:00:09]} Bg6 {[%emt 0:02:45]} 16. Kh2 {[%emt 0:15:40]} Qc7 {[%emt 0:01:49]} 17. dxc5 {[%emt 0:07:51]} Nxc5 {[%emt 0:00:27]} 18. Nd4 {[%emt 0:00:06]} a6 {[%emt 0:00:27]} 19. Re3 {[%emt 0:03:01]} Qd7 {[%emt 0:01:48]} 20. Qe2 {[%emt 0:04:14]} f5 {[%emt 0:01:14]} 21. f4 {[%emt 0:01:02]} Ne4 {[%emt 0:01:04]} 22. b3 {[%emt 0:06:20]} Nxc3 {[%emt 0:04:15]} 23. Rxc3 {[%emt 0:00:06]} Rxc3 {[%emt 0:00:05]} 24. Bb2 {[%emt 0:00:04]} Rcc8 {[%emt 0:00:25]} 25. Re1 {[%emt 0:06:45]} Bb4 {[%emt 0:02:31]} 26. Qd3 {[%emt 0:02:34]} Nc6 {[%emt 0:07:45]} 27. Re6 {[%emt 0:01:44]} Kh7 {[%emt 0:02:32]} 28. N2f3 {[%emt 0:01:49]} Nxd4 {[%emt 0:01:14]} 29. Nxd4 {[%emt 0:00:18]} Rce8 {[%emt 0:02:50]} 30. Rxe8 {[%emt 0:11:58]} Rxe8 {[%emt 0:00:11]} 31. Nf3 {[%emt 0:00:17]} Qc7 {[%emt 0:16:39]} 32. Ne5 {[%emt 0:00:51]} Rc8 {[%emt 0:01:22]} 33. Nxg6 {[%emt 0:01:44]} Kxg6 {[%emt 0:00:21]} 34. Qxd5 {[%emt 0:00:26]} Qd6 {[%emt 0:00:46]} 35. Qxb7 {[%emt 0:00:45]} Rc7 {[%emt 0:00:01]} 36. Qa8 {[%emt 0:00:55]} Bc3 {[%emt 0:00:57]} 37. Bc1 {[%emt 0:01:05]} Bf6 {[%emt 0:03:59]} 38. Qb8 {[%emt 0:00:26]} Qd8 {[%emt 0:01:05]} 39. Qxd8 {[%emt 0:00:39]} Bxd8 {[%emt 0:00:01]} 40. Bb2 {[%emt 0:00:00]} Bf6 {[%emt 0:00:00]} 41. Bxf6 {[%emt 0:01:31]} Kxf6 {[%emt 0:04:18]} 42. a5 {[%emt 0:00:54]} Rc2 {[%emt 0:00:48]} 43. h4 {[%emt 0:00:24]} g5 {[%emt 0:02:41]} 44. hxg5+ {[%emt 0:00:28]} hxg5 {[%emt 0:00:01]} 45. fxg5+ {[%emt 0:02:08]} Kxg5 {[%emt 0:00:02]} 46. Kh3 {[%emt 0:00:07]} Rc3 {[%emt 0:00:22]} 47. Kh2 {[%emt 0:02:24]} Rxb3 {[%emt 0:00:15]} 48. Bf1 {[%emt 0:00:17]} Re3 {[%emt 0:00:13]} 49. Bxa6 {[%emt 0:02:52]} Kg4 {[%emt 0:00:20]} 0-1